{"text_format":"1","workbook":"xlsx","n_sheets":6,"sheets":["Home","Return_EXISTING_ITEMS","DELIVERY_ITEMS","SCAN_ITEMS","Lists","READ ME"],"not_rendered":{"charts":0,"images":1,"macros":1,"external_links":1,"defined_names":2,"comments":0,"pivot_tables":0},"unopened":[],"bounds":{"document_bytes":16777216,"sheet_cells":100000,"rows_first":2000,"rows_last":500,"rows_between":2000,"halvings":0,"cell_chars":16384,"cell_head_chars":4096},"cells_cut":0,"cells_raw":0,"read":"whole","date_system":"1900"}

{"sheet":"Home","index":0,"n_rows":82,"n_cols":26,"rows_kept":82,"cut":false,"hidden":false,"merged":[[13,1,13,2],[13,4,13,5],[10,0,10,3],[39,9,45,12],[11,0,12,5],[16,0,16,5],[34,3,35,3],[37,0,38,2],[37,3,38,3],[37,4,38,4],[6,0,6,5],[7,0,7,1],[7,2,7,3],[8,0,8,1],[8,2,8,3],[59,3,59,5],[62,3,62,5],[50,1,51,3],[53,0,54,2],[0,0,0,13],[5,8,37,13],[40,0,41,2],[44,0,44,5],[45,0,46,5],[48,0,49,2],[48,3,49,3],[1,0,1,5],[2,0,2,1],[2,2,2,3],[3,0,3,1],[3,2,3,3],[77,0,77,5],[78,3,78,4],[79,3,79,4],[80,3,80,4],[81,3,82,4],[81,5,82,5],[78,0,82,2],[5,2,5,3],[4,0,4,1],[5,0,5,1],[4,2,4,3],[4,4,5,5],[57,0,57,5],[18,0,19,2],[18,3,19,3],[18,4,19,4],[21,3,22,3],[21,4,22,4],[21,0,22,2],[53,3,54,3],[53,4,54,5],[30,0,30,5],[40,3,41,3],[40,4,41,4],[24,0,25,2],[24,3,25,3],[24,4,25,4],[34,0,35,2],[1,11,2,13],[74,0,74,5],[27,0,28,2],[27,3,28,3],[27,4,28,4],[62,0,62,2],[67,0,67,5],[69,0,69,2],[69,3,69,4],[72,0,72,2],[72,3,72,4],[64,0,64,5],[59,0,59,2],[3,8,4,13],[37,5,38,5],[40,5,41,5]]}
["IRON MOUNTAIN SERVICE REQUEST FORM"]
["ACCOUNT DETAILS",null,null,null,null,null,null,null,null,null,null,"Note that this form should be submitted or approved by an \"authorized\" user. For more on request submission,\nplease refer to the \"READ ME\" page.",null,null,null,null,null,null,null,null,null,null,null,null,null,{"$f":"IF(C4=\"\",\"___Account Code is empty! (This sheet, Cell: C4)___\",IF(C6<>\"\",C4&\"\\\"&C5&\"\\\"&C6,IF(C5<>\"\",C4&\"\\\"&C5,C4)))","v":"___Account Code is empty! (This sheet, Cell: C4)___"}]
["Company Name:",null,null,null,"Working on Saturdays:*",null,null,null,null,null,null,null,null,null,null,null,null,null,null,null,null,null,null,null,null,{"$f":"IF(C3=\"\",\"___Company Name is empty! (This sheet, Cell: C3)___\",C3)","v":"___Company Name is empty! (This sheet, Cell: C3)___"}]
["Account Code:*",null,null,null,"Working Hours:*",null,null,null,"REQUEST SUMMARY",null,null,null,null,null,null,null,null,null,null,null,null,null,null,null,null,{"$f":"IF(C8=\"\",\"___Contact Name is empty! (This sheet | Cell: C8)___\",C8)","v":"___Contact Name is empty! (This sheet | Cell: C8)___"}]
["Department Code:*",null,null,null,null,null,null,null,null,null,null,null,null,null,null,null,null,null,null,null,null,null,null,null,null,{"$f":"IF(AND(C9=\"\",F9=\"\"), \"___Contact Communication Fields are empty! (This sheet | Cell: C9 & F9)___\",C9 & \" - \" & F9)","v":"___Contact Communication Fields are empty! (This sheet | Cell: C9 & F9)___"}]
["Sub-Department Code:*",null,null,null,null,null,null,null,{"$f":"\"ACCOUNT: \" & Z2 & CHAR(10) &\nZ3 & CHAR(10) & CHAR(10) &\nIF(AND(D22<>\"Yes\",D25<>\"Yes\"),\"\",\"CONTACT: \" & Z4 & CHAR(10) & Z5 & CHAR(10) & \"Address: \"& Z6 & CHAR(10)) & CHAR(10) &\n\"---------------------------------------------------------------\" & CHAR(10) &\n\"SELECTED SERVICES:\"& CHAR(10) &IF(COUNTIF(D19:D29,\"Yes\")>0,\"\",\"No services selected.\"& CHAR(10))&\n\"---------------------------------------------------------------\" & CHAR(10) &\nIF(D19<>\"Yes\",\"\",\"REQUEST FOR NEW SUPPLIES - Yes: \"&CHAR(10)&G32&CHAR(10))&CHAR(10) &\nIF(D22<>\"Yes\", \"\",\"COLLECTION REQUEST - Yes: \"&CHAR(10)&G46&CHAR(10))&CHAR(10) &\nIF(D25<>\"Yes\", \"\",\"DELIVERY REQUEST - Yes: \"&CHAR(10)&G59&CHAR(10))&CHAR(10) &\nIF(D28<>\"Yes\",\"\",\"SCAN REQUEST - Yes: \"&CHAR(10)&G69)","v":"ACCOUNT: ___Account Code is empty! (This sheet, Cell: C4)___\n___Company Name is empty! (This sheet, Cell: C3)___\n\n\n---------------------------------------------------------------\nSELECTED SERVICES:\nNo services selected.\n---------------------------------------------------------------\n\n\n\n"},null,null,null,null,null,null,null,null,null,null,null,null,null,null,null,null,{"$f":"IF(A12=\"\",\"___Address field is empty! (This sheet | Cell: A12)___\",A12)","v":"___Address field is empty! (This sheet | Cell: A12)___"}]
["CONTACT DETAILS"]
["Contact Name:"]
["Contact Email:",null,null,null,"Contact Phone:"]
[]
["Full Address for DELIVERY and COLLECTION Requests: *"]
[]
[]
["City:",null,null,"Country:"]
[]
[]
["Please choose the services that will be included in your request:"]
[]
["REQUEST FOR NEW SUPPLIES:\n(Box, File, etc.)",null,null,null,{"$f":"IF(D19=\"Yes\",HYPERLINK(\"#D35\",\"Click here to proceed to the relevant section\"),\"\")","v":""}]
[]
[]
["COLLECTION REQUEST:\nFrom   YOUR OFFICE   to the   WAREHOUSE",null,null,null,{"$f":"IF(D22=\"Yes\",HYPERLINK(\"#D55\",\"Click here to proceed to the relevant section\"),\"\")","v":""}]
[]
[]
["DELIVERY REQUEST:\nFrom   the WAREHOUSE   to   YOUR OFFICE",null,null,null,{"$f":"IF(D25=\"Yes\",HYPERLINK(\"#D65\",\"Click here to proceed to the relevant section\"),\"\")","v":""}]
[]
[]
["SCAN REQUEST:\nImaging to be sent by Email (or Fax if available)",null,null,null,{"$f":"IF(D28=\"Yes\",HYPERLINK(\"#D75\",\"Click here to proceed to the relevant section\"),\"\")","v":""}]
[]
[]
["REQUEST FOR NEW SUPPLIES"]
[null,null,null,null,null,null,{"$f":"IF(D19<>\"Yes\",\"\",IF(D35=\"Yes\",\"| Empty Cartons: \"&\nIF(AND(F35=\"\",F36=\"\"),0,IF(AND(F35<>\"\",F36<>\"\"),\"LL Box - \"&F35&\" & CP Box - \"&F36,IF(F35<>\"\",\"LL Box - \"&F35,\"CP Box - \"&F36)))\n&\" pcs. |\",\"\")&IF(D38=\"Yes\",CHAR(10)&\"| Carton Barcode Labels: \"&IF(F38=\"\",0,F38)&\" pcs. |\",\"\")&IF(D41=\"Yes\",CHAR(10)&\"| File Barcode Labels: \"&IF(F41=\"\",0,F41)&\" pcs. |\",\" - No quantities added for new supplies.\"))","v":""}]
["Determine your supply needs:"]
["(You can use the Quantity Estimator, in this sheet - rows 78-83, if you are not sure.)"]
["EMPTY CARTONS",null,null,null,{"$f":"IF(D35=\"Yes\",\"QUANTITY (LL Box):\",\"\")","v":""},null,{"$f":"IF(AND(F35=\"\",F36=\"\"),0,IF(AND(F35<>\"\",F36<>\"\"),\"LL Box - \"&F35&\" & CP Box - \"&F36,IF(F35<>\"\",\"LL Box - \"&F35,\"CP Box - \"&F36)))","v":0}]
[null,null,null,null,{"$f":"IF(D35=\"Yes\",\"QUANTITY (CP Box):\",\"\")","v":""}]
[]
["CARTON BARCODE LABELS",null,null,null,{"$f":"IF(D38=\"Yes\",\"QUANTITY:\",\"\")","v":""}]
[]
[null,null,null,null,null,null,null,null,null,{"$f":"HYPERLINK(\"#'READ ME'!B15\",\"Have you tried our online request portal?\nIt's much faster to submit your requests!\nClick here to learn more...\")","v":"Have you tried our online request portal?\nIt's much faster to submit your requests!\nClick here to learn more..."}]
["FILE BARCODE LABELS",null,null,null,{"$f":"IF(D41=\"Yes\",\"QUANTITY:\",\"\")","v":""}]
[]
[]
[]
["COLLECTION (From YOUR OFFICE to the WAREHOUSE) REQUEST"]
["Please choose the collection services you require:",null,null,null,null,null,{"$f":"IF(D22<>\"Yes\",\"\",\nIF(AND(D49=\"Yes\",D54=\"Yes\"),\"--- NEW ITEMS:\"&CHAR(10)&G49&CHAR(10)&CHAR(10)&\"--- RETURN ITEMS:\"&CHAR(10)&G54,\nIF(D49=\"Yes\",\"--- NEW ITEMS:\"&CHAR(10)&G49,\nIF(D54=\"Yes\",\"--- RETURN ITEMS:\"&CHAR(10)&G54,\" - No collection services selected.\"))))","v":""}]
[]
[null,null,null,null,"Service Type:"]
["Request to store NEW Records:",null,null,null,"Scan Before Storage:",null,{"$f":"IF(D49<>\"Yes\",\"\",\nIF(F48=\"\",\" - Please choose the service type.\",\"Service Type: \"&F48) &\nIF(F49=\"Yes\",\"  -->  Scan Before Storage\",\"\") &\nCHAR(10)& IF(G51=\"\",\" - Please type down the box quantities.\",G51) &\nCHAR(10) & IF(F50=\"\",\" - Please choose the storage level.\",\"To be stored at \"&F50&\" level.\"))","v":""}]
[null,null,null,null,"Storage Level:"]
[null,"QUANTITY OF THE BOXES:\n(Use the Quantity Estimator at Rows 78-83 if you are not sure)",null,null,{"$f":"IF(D49=\"Yes\",\"QUANTITY (LL Box):\",\"\")","v":""},null,{"$f":"IF(AND(F51=\"\",F52=\"\"),\"\",IF(AND(F51<>\"\",F52<>\"\"),\"LL Box - \"&F51&\" & CP Box - \"&F52,IF(F51<>\"\",\"LL Box - \"&F51,\"CP Box - \"&F52)))","v":""}]
[null,null,null,null,{"$f":"IF(D49=\"Yes\",\"QUANTITY (CP Box):\",\"\")","v":""}]
[]
["Request to RETURN Existing Records:",null,null,null,{"$f":"IF(D54<>\"Yes\",\"\",HYPERLINK(\"#Return_EXISTING_ITEMS!A1\",\"Please go to the 'Return_EXISTING_ITEMS' sheet, and add the barcodes of the items.\"))","v":""},null,{"$f":"IF(D54<>\"Yes\",\"\",Return_EXISTING_ITEMS!E1)","v":""}]
[]
[]
[]
["DELIVERY (From the WAREHOUSE to YOUR OFFICE) REQUEST"]
[null,null,null,null,null,null,{"$f":"IF(D25<>\"Yes\",\"\",DELIVERY_ITEMS!E1)","v":""}]
["Specify Mode of transportation:"]
["Note: Transportation mode and delivery time affect charges "]
[]
["Specify Time for delivery: "]
[]
[{"$f":"IF(D25=\"Yes\",IF(AND(D60=\"\",D63=\"\"),\"Please choose the delivery mode and time.\",IF(D60=\"\",\"Please choose the delivery mode.\",IF(D63=\"\",\"Please choose the delivery time.\",HYPERLINK(\"#DELIVERY_ITEMS!A1\",\"Please go to the 'DELIVERY_ITEMS' sheet to add the barcodes of the items.\")))),\"\")","v":""}]
[]
[]
["SCAN or FAX REQUEST"]
[null,null,null,null,null,null,{"$f":"IF(D28<>\"Yes\",\"\",SCAN_ITEMS!E1)","v":""}]
["Specify Mode of transportation:"]
["Note: Transportation mode and delivery time affect charges "]
[]
["Specify Time for delivery: "]
[]
[{"$f":"IF(D28=\"Yes\",IF(AND(D70=\"\",D73=\"\"),\"Please choose the scan mode and time.\",IF(D70=\"\",\"Please choose the scan mode.\",IF(D73=\"\",\"Please choose the delivery time.\",HYPERLINK(\"#SCAN_ITEMS!A1\",\"Please go to the 'SCAN_ITEMS' sheet to add the barcodes of the items.\")))),\"\")","v":""}]
[]
[]
["QUANTITY ESTIMATOR"]
["Use this tool to estimate quantity & type of cartons.",null,null,"File Type",null,"Quantity of Files"]
[]
[]
[null,null,null,"Estimation :",null,{"$f":"IFERROR(IF(AND(F80=\"\",F81=\"\"),\"\",IF(AND(F80<>\"\",F81<>\"\"),VLOOKUP(D80,Lists!$A$12:$C$18,2,0) & \" Box - \"&ROUNDUP(F80/VLOOKUP(D80,Lists!$A$12:$C$18,3,0),0)&\" & \" & CHAR(10) & VLOOKUP(D81,Lists!$A$12:$C$18,2,0) & \" Box - \"&ROUNDUP(F81/VLOOKUP(D81,Lists!$A$12:$C$18,3,0),0),IF(F80<>\"\",VLOOKUP(D80,Lists!$A$12:$C$18,2,0) & \" Box - \"&ROUNDUP(F80/VLOOKUP(D80,Lists!$A$12:$C$18,3,0),0),VLOOKUP(D81,Lists!$A$12:$C$18,2,0) & \" Box - \"&ROUNDUP(F81/VLOOKUP(D81,Lists!$A$12:$C$18,3,0),0)))),\"\")","v":""}]

{"sheet":"Return_EXISTING_ITEMS","index":1,"n_rows":8,"n_cols":10,"rows_kept":8,"cut":false,"hidden":false,"merged":[[4,7,4,8],[4,10,4,11],[6,6,6,8],[8,6,13,11],[0,0,0,3],[0,6,0,11],[1,10,2,11],[2,6,2,9],[3,7,3,8]]}
["For Item Refile/Return Requests      (specify the barcodes to process your request)",null,null,null,{"$f":"IF(AND(E3>0,E4>0),\nE3&E6&\" and \"&E4&E7,\nIF(E3>0,E3&E6,IF(E4>0,E4&E7,\" - No barcodes added for a Refile/Return Request\"))\n)","v":" - No barcodes added for a Refile/Return Request"},null,"RECEIVER DETAILS"]
["Carton Level Barcode*","File Level \nBarcode*","Alternate ID","Description",null,null,"Items to be picked from:*",null,null,{"$f":"IF(I2=\"Other\",\"Please specify where to deliver:\",\"\")","v":""}]
[null,null,null,null,{"$f":"COUNTA(A3:A100000)","v":0},null,"(Please fill below if the service contact is different than the authorized user)"]
[null,null,null,null,{"$f":"COUNTA(B3:B100000)","v":0},null,"Name:*"]
[null,null,null,null,null,null,"Tel/Ext:*",null,null,"Email:"]
[null,null,null,null,{"$f":"IF(E3=1, \" Carton\", \" Cartons\")","v":" Cartons"}]
[null,null,null,null,{"$f":"IF(E4=1, \" File\", \" Files\")","v":" Files"},null,"Special Instructions for the Delivery:"]
[null,null,null,null,null,null,"Example: \"Closed for lunch at 1-2pm\", \"parking restricted\", etc."]

{"sheet":"DELIVERY_ITEMS","index":2,"n_rows":8,"n_cols":10,"rows_kept":8,"cut":false,"hidden":false,"merged":[[0,0,0,3],[4,10,4,11],[0,6,0,11],[1,10,2,11],[6,6,6,8],[8,6,13,11],[2,6,2,9],[3,7,3,8],[4,7,4,8]]}
["For Item Delivery Requests      (specify the barcodes to process your request)",null,null,null,{"$f":"IF(AND(E3>0,E4>0),\nE3&E6&\" and \"&E4&E7,\nIF(E3>0,E3&E6,IF(E4>0,E4&E7,\" - No barcodes added for a Delivery Request\"))\n)","v":" - No barcodes added for a Delivery Request"},null,"RECEIVER DETAILS"]
["Carton Level Barcode*","File Level \nBarcode*","Alternate ID","Description",null,null,"Service to be Delivered to:*",null,null,{"$f":"IF(I2=\"Other\",\"Please specify where to deliver:\",\"\")","v":""}]
[null,null,null,null,{"$f":"COUNTA(A3:A100000)","v":0},null,"(Please fill below if the receiver is different than the authorized user)"]
[null,null,null,null,{"$f":"COUNTA(B3:B100000)","v":0},null,"Name:*"]
[null,null,null,null,null,null,"Tel/Ext:*",null,null,"Email:"]
[null,null,null,null,{"$f":"IF(E3=1, \" Carton\", \" Cartons\")","v":" Cartons"}]
[null,null,null,null,{"$f":"IF(E4=1, \" File\", \" Files\")","v":" Files"},null,"Special Instructions for the Delivery:"]
[null,null,null,null,null,null,"Example: \"Closed for lunch at 1-2pm\", \"parking restricted\", etc."]

{"sheet":"SCAN_ITEMS","index":3,"n_rows":7,"n_cols":7,"rows_kept":7,"cut":false,"hidden":false,"merged":[[0,0,0,3],[1,6,1,8],[3,6,8,11]]}
["For Scan Requests      (specify the barcodes to process your request)",null,null,null,{"$f":"IF(AND(E3>0,E4>0),\nE3&E6&\" and \"&E4&E7,\nIF(E3>0,E3&E6,IF(E4>0,E4&E7,\" - No barcodes added for a Scan Request\"))\n)","v":" - No barcodes added for a Scan Request"}]
["Carton Level Barcode*","File Level \nBarcode*","Alternate ID","Description",null,null,"Special Instructions for the Scanning:"]
[null,null,null,null,{"$f":"COUNTA(A3:A100000)","v":0},null,"Details to find the correct file, if necessary"]
[null,null,null,null,{"$f":"COUNTA(B3:B100000)","v":0}]
[]
[null,null,null,null,{"$f":"IF(E3=1, \" Carton\", \" Cartons\")","v":" Cartons"}]
[null,null,null,null,{"$f":"IF(E4=1, \" File\", \" Files\")","v":" Files"}]

{"sheet":"Lists","index":4,"n_rows":60,"n_cols":3,"rows_kept":60,"cut":false,"hidden":true,"merged":[[9,0,10,0],[9,1,10,1],[9,2,10,2],[22,8,22,11]]}
["Select"]
["Flat Files"]
["Hanging Files"]
["Box Files"]
["Loose Documents"]
["Drawings"]
["X-Rays"]
[]
[]
["Document  Type","Carton Type","Capacity"]
[]
["Flat Files","LL",30]
["Hanging Files","CP",50]
["Box Files","LL",4]
["Loose Documents","CP",1500]
["Drawings","Drawing",4]
["X-Rays","X-Ray",20]
["Other \n(Please specify)","TBD","TBD"]
[]
["Delivery"]
["Refile"]
[]
[]
["Select"]
["Iron Mountain Delivery","Scan to Email"]
["Pickup by Customer","Scan to Fax"]
["Iron Mountain Facility Room"]
[]
[]
[]
["Delivery","Scan"]
["STANDARD/SHUTTLE (cut-off: 16:00)","STANDARD (cut-off: 13:00)"]
["URGENT (If Available | Extra Fees | Cut-off: 13:00)"]
["AFTER WORK HOURS (If Available | Extra Fees | Cut-off: 13:00)"]
[]
[]
["Request to Store New Records:"]
["Pickup of new records"]
["Drop off new records to Iron Mountain"]
["Packing & Inventory"]
["Packing & Collection"]
[]
["Select"]
["Collection of refiles"]
["Drop off refiles to InfoFort"]
[]
[]
[]
[]
["Select"]
["Yes"]
["No"]
[]
["Select"]
["Reception"]
["Other"]
[]
["Storage Level:"]
["Carton"]
["File"]

{"sheet":"READ ME","index":5,"n_rows":15,"n_cols":4,"rows_kept":15,"cut":false,"hidden":false,"merged":[[0,0,0,2],[0,3,2,9]]}
["IRON MOUNTAIN SERVICE REQUEST FORM - USER GUIDE",null,null,{"$f":"HYPERLINK(\"#B15\",\"Have you tried our online request portal?\nIt's much faster to submit your requests!\nClick here to learn more...\")","v":"Have you tried our online request portal?\nIt's much faster to submit your requests!\nClick here to learn more..."}]
[null,"Request Form's Importance"]
[null,"Access to information held by Iron Mountain, whether in physical or digital form, is restricted only to authorized users. In order to ensure the security and confidentiality of our document management program, requests will be accepted solely from individuals who have been authorized.\n\nTo be able to create an Order/Request, the Request Form must be sent/signed by an \"Authorized User\" registered in the Iron Mountain systems."]
[]
[null,"Who is considered an Authorized User?"]
[null,"An Authorized User is an individual who has been fully registered in our systems, with their information accurately provided on the Iron Mountain \"Authorized User Form,\" and the form has been signed by an executive mentioned in their company's signature circular. The completed form should be sent to the Iron Mountain Customer Care Team, and once the registration is confirmed in our systems, the person becomes an Authorized User."]
[]
[null,"When will my Request/Order be delivered?"]
[null,"Physical requests are processed until 4:00 PM. Requests/orders submitted after 4:00 PM will be processed for the next shipment day.\nSame day deliveries are processed by URGENT service option; where physical deliveries of such requests should be submitted by 1:00 PM to be fulfilled on the same day.\nIf the request is required to be delivered after working hours, AFTER WORK HOURS service option should be selected, and the form should be submitted by 1:00 PM.\n\nNote that the cost of the URGENT and AFTER WORK HOURS services differs from the standard service. Both options depend on the operational availability.\n\nScanning requests are processed until 1:00 PM. Requests/orders submitted after 1:00 PM will be processed for the next business day."]
[]
[null,"ONLINE PORTAL For Sending Requests"]
[null,"Iron Mountain's online portal enables its customers to submit various service requests, access their inventories, manage inventory information, and obtain request reports."]
[null,"Benefits and features:\n - Faster request handling\n - Free application with no user charges\n - Reduced Expenses: No order fee, No charges on Data Entry and Inventory completed through the portal\n - Online order submission, No emails or forms to be filled\n - Real-time inventory review and order tracking\n - Quick access to inventory reports\n - Order tracking and status updates\n - Selective access levels per user"]
[null,"For more information, please visit:"]
[null,"https://www.ironmountain.com/ae/en/support/how-it-works"]